bitfinex-derivatives/quotes_BNBF0:USTF0_20250329
["timestamp","ask_amount","ask_price","bid_price","bid_amount"]
[1743241408270,5.92172525,604.32,604.18,0.28562233]
[1743241408570,8.68089242,604.31,604.18,0.28562233]
[1743241408870,3.76024609,604.3,604.18,0.28562233]
[1743241409066,3.76024609,604.29,604.18,0.28562233]
[1743241409264,2.27758663,604.28,604.18,0.28562233]
[1743241409466,2.27758663,604.27,604.18,0.28562233]
[1743241409669,1.06121814,604.28,604.18,0.28562233]
[1743241409670,2.27758663,604.26,604.18,0.28562233]
[1743241409972,2.27758663,604.25,604.18,0.28562233]
[1743241410166,2.27758663,604.24,604.18,0.28562233]
[1743241410370,2.27758663,604.23,604.18,0.28562233]
[1743241410671,0.92666216,604.22,604.18,0.28562233]
[1743241410871,0.92666216,604.21,604.18,0.28562233]
[1743241411067,1.06121814,604.21,604.18,0.28562233]
[1743241411872,0.92668971,604.2,604.18,0.28562233]
[1743241412173,2.59605861,604.43,604.18,0.28562233]
[1743241412377,6.41827478,604.42,604.18,0.28562233]
[1743241412574,6.41827478,604.41,604.18,0.28562233]
[1743241412769,8.11630135,604.4,604.18,0.28562233]
[1743241412969,6.41827478,604.39,604.18,0.28562233]
[1743241413178,6.41827478,604.38,604.18,0.28562233]
[1743241413377,6.41827478,604.37,604.18,0.28562233]
[1743241413580,6.41827478,604.36,604.18,0.28562233]
[1743241413790,6.41827478,604.35,604.19,0.28561065]
[1743241414079,6.41827478,604.34,604.2,0.28561065]
[1743241414275,6.41827478,604.33,604.2,0.28561065]
[1743241414474,6.41827478,604.32,604.21,0.28561065]
[1743241414673,9.17756795,604.31,604.21,0.28561065]
[1743241414979,6.41827478,604.3,604.22,0.28561065]
[1743241415179,5.92198426,604.29,604.18,0.28561065]
[1743241415379,5.92198426,604.28,604.19,0.28561065]
[1743241415575,5.92198426,604.27,604.17,0.33103265]
[1743241415777,3.76041255,604.26,604.18,0.2856004]
[1743241415979,2.27768625,604.25,604.18,0.2856004]
[1743241416277,2.27768625,604.24,604.18,0.2856004]
[1743241416583,0.92670393,604.23,604.18,0.2856004]
[1743241416774,0.92670393,604.22,604.18,0.2856004]
[1743241416976,1.0612666,604.23,604.18,0.2856004]
[1743241417282,0.92675609,604.22,604.18,0.2856004]
[1743241417483,1.0612666,604.23,604.18,0.2856004]
[1743241417782,1.0612666,604.22,604.18,0.2856004]
[1743241418682,1.0612666,604.22,604.17,0.33103265]
[1743241418882,1.62263952,604.6,604.17,0.33103265]
[1743241419083,6.41863377,604.59,604.17,0.33103265]
[1743241419283,6.41863377,604.58,604.17,0.33103265]
[1743241419485,6.41863377,604.57,604.17,0.33103265]
[1743241419675,6.41863377,604.56,604.17,0.33103265]
[1743241419879,6.41863377,604.55,604.17,0.33103265]
[1743241420079,2.75943249,604.59,604.17,0.33103265]
[1743241420383,9.17872816,604.58,604.17,0.33103265]
[1743241420584,6.41929567,604.57,604.17,0.33103265]
[1743241420785,6.41929567,604.56,604.17,0.33103265]
[1743241420984,6.41929567,604.55,604.17,0.33103265]
[1743241421180,6.41929567,604.54,604.17,0.33103265]
[1743241421379,9.17872816,604.53,604.17,0.33103265]
[1743241421583,6.41929567,604.52,604.17,0.33103265]
[1743241421781,6.41929567,604.51,604.17,0.33103265]
[1743241421986,6.41929567,604.5,604.17,0.33103265]
[1743241422287,6.41939468,604.49,604.17,0.33103265]
[1743241422487,6.41939468,604.48,604.17,0.33103265]
[1743241422684,6.41939468,604.47,604.17,0.33103265]
[1743241422884,6.41939468,604.46,604.17,0.33103265]
[1743241423184,6.41939468,604.45,604.17,0.33103265]
[1743241423390,6.41939468,604.44,604.17,0.33103265]
[1743241423582,6.41939468,604.43,604.17,0.33103265]
[1743241423781,6.41939468,604.42,604.17,0.33103265]
[1743241423986,5.92307026,604.41,604.17,0.33103265]
[1743241424179,5.92255641,604.4,604.17,0.33103265]
[1743241424385,5.92255641,604.39,604.17,0.33103265]
[1743241424581,1.35109126,604.38,604.17,0.33103265]
[1743241424782,6.4187793,604.37,604.17,0.33103265]
[1743241424987,5.92250003,604.36,604.17,0.33103265]
[1743241425187,3.76075402,604.35,604.17,0.33103265]
[1743241425386,5.92253226,604.34,604.17,0.33103265]
[1743241425581,5.92253226,604.33,604.17,0.33103265]
[1743241425781,5.92253226,604.32,604.17,0.33103265]
[1743241426086,5.92253226,604.31,604.17,0.33103265]
[1743241426286,5.92253226,604.3,604.17,0.33103265]
[1743241426487,3.76075402,604.29,604.17,0.33103265]
[1743241426682,3.76072684,604.28,604.17,0.33103265]
[1743241426987,2.27788463,604.27,604.17,0.33103265]
[1743241427184,2.27788463,604.26,604.17,0.33103265]
[1743241427384,2.27788463,604.25,604.17,0.33103265]
[1743241427582,2.27788463,604.24,604.17,0.33103265]
[1743241427785,2.27788463,604.23,604.17,0.33103265]
[1743241428087,2.27788463,604.22,604.17,0.33103265]
[1743241428283,2.27807181,604.21,604.17,0.33103265]
[1743241428484,0.92679337,604.2,604.18,0.28558972]
[1743241428680,0.92699194,604.19,604.18,0.28558972]
[1743241428887,1.0613362,604.21,604.18,0.28558972]
[1743241429088,0.92699846,604.2,604.19,0.28558972]
[1743241429383,0.92699846,604.2,604.18,0.28558972]
[1743241429592,1.0613362,604.2,604.19,0.28558972]
[1743241429787,1.0613362,604.2,604.18,0.28558972]
[1743241430089,1.0613362,604.2,604.19,0.28558972]
[1743241430283,1.62281375,604.61,604.18,0.28558972]
[1743241430481,6.42186458,604.6,604.18,0.28558972]
[1743241430688,6.42186458,604.59,604.18,0.28558972]
[1743241430890,6.42186458,604.58,604.17,0.33103265]
[1743241431190,6.42186458,604.57,604.18,0.28554306]
[1743241431383,6.42186458,604.56,604.18,0.28554306]
[1743241431588,6.42186458,604.55,604.18,0.28554306]
[1743241431785,6.42186458,604.54,604.18,0.28554306]
[1743241431987,6.42186458,604.53,604.18,0.28554306]
[1743241432291,6.42220396,604.52,604.18,0.28554306]
[1743241432486,6.42220396,604.51,604.18,0.28554306]
[1743241432683,6.42220396,604.5,604.18,0.28554306]
[1743241432882,6.42220396,604.49,604.18,0.28554306]
[1743241433086,6.42220396,604.48,604.18,0.28554306]
[1743241433282,6.42220396,604.47,604.18,0.28554306]
[1743241433485,6.42221032,604.46,604.18,0.28554306]
[1743241433685,6.42221032,604.45,604.18,0.28554306]
[1743241433884,6.42221032,604.44,604.18,0.28554306]
[1743241434088,5.9259908,604.43,604.18,0.28554306]
[1743241434391,5.9264607,604.42,604.18,0.28554306]
[1743241434690,5.9264607,604.41,604.18,0.28554306]
[1743241434881,3.51555152,604.4,604.18,0.28554306]
[1743241435087,4.99918794,604.39,604.18,0.28554306]
[1743241435288,3.76304438,604.38,604.18,0.28554306]
[1743241435487,2.76114654,604.39,604.18,0.28554306]
[1743241435488,2.27940796,604.37,604.18,0.28554306]
[1743241435688,2.27940796,604.36,604.18,0.28554306]
[1743241435991,2.27940796,604.35,604.18,0.28554306]
[1743241436195,0.92727276,604.34,604.18,0.28554306]
[1743241436393,1.06197944,604.35,604.18,0.28554306]
[1743241436585,0.92747269,604.34,604.18,0.28554306]
[1743241436791,1.06197944,604.35,604.27,1.23313156]
[1743241437087,4.44259107,604.34,604.28,0.28554306]
[1743241437292,3.76328136,604.33,604.28,0.28554306]
[1743241437492,2.27955908,604.32,604.28,0.28554306]
[1743241437687,5.92626096,604.31,604.28,0.28554306]
[1743241437885,5.92624561,604.3,604.27,1.23313156]
[1743241438091,5.92624561,604.29,604.27,1.23313156]
[1743241438293,3.76327289,604.28,604.27,1.23313156]
[1743241438490,5.92661623,604.28,604.27,1.23313156]
[1743241439085,8.68774986,604.28,604.27,1.23313156]
[1743241439892,8.68774986,604.28,604.17,0.33103265]
[1743241440091,6.42294783,604.27,604.17,0.33103265]
[1743241440291,5.92711414,604.26,604.17,0.33103265]
[1743241440492,3.76367436,604.25,604.18,0.28559385]
[1743241440694,2.27965928,604.24,604.18,0.28559385]
[1743241440895,2.27965928,604.23,604.18,0.28559385]
[1743241441195,2.27965928,604.22,604.18,0.28559385]
[1743241441392,2.27965928,604.21,604.18,0.28559385]
[1743241441592,2.27965928,604.2,604.18,0.28559385]
[1743241441892,0.92750942,604.19,604.18,0.28559385]
[1743241442389,1.98948389,604.19,604.18,0.28559385]
[1743241442989,1.98948389,604.19,604.17,0.33103265]
[1743241443292,1.06197447,604.19,604.17,0.33103265]
[1743241443488,0.92754774,604.18,604.17,0.33103265]
[1743241443889,1.98952221,604.18,604.17,0.33103265]
[1743241444195,1.98952221,604.18,604.17,0.61662415]
[1743241445595,1.98952221,604.18,604.17,0.33103265]
[1743241445890,1.98952221,604.18,604.17,0.6166193]
[1743241446288,0.92754774,604.18,604.17,0.6166193]
[1743241447195,1.62281375,604.4,604.17,0.6166193]
[1743241447387,6.42439637,604.39,604.18,0.28558665]
[1743241447590,6.42443777,604.38,604.18,0.28558665]
[1743241447893,1.62281375,604.4,604.18,0.28558665]
[1743241447894,5.9281549,604.37,604.18,0.28558665]
[1743241448090,5.9281549,604.36,604.18,0.28558665]
[1743241448295,5.9281549,604.35,604.18,0.28558665]
[1743241448496,3.76431985,604.34,604.25,1.23313156]
[1743241448696,3.76431985,604.33,604.26,0.28558665]
[1743241448890,2.28005957,604.32,604.26,0.28558665]
[1743241449094,2.28005957,604.31,604.26,0.28558665]
[1743241449295,2.28005957,604.3,604.26,0.28558665]
[1743241449496,2.28005957,604.29,604.26,0.28558665]
[1743241449694,2.28011731,604.28,604.26,0.28558665]
[1743241449992,0.92772041,604.27,604.26,0.28558665]
[1743241450198,2.28014739,604.27,604.26,0.28558665]
[1743241450392,2.28014739,604.27,604.22,1.23313156]
[1743241450393,2.28014739,604.27,604.23,0.28558665]
[1743241450596,0.92772041,604.26,604.24,0.28559308]
[1743241450797,0.92772041,604.25,604.23,0.28559308]
[1743241450998,1.0622669,604.27,604.24,0.28559147]
[1743241451198,0.92781304,604.26,604.23,0.28559147]
[1743241451394,0.92793247,604.25,604.24,0.28559147]
[1743241451596,0.92793247,604.25,604.23,0.28559147]
[1743241451799,1.0622669,604.26,604.23,0.28559147]
[1743241451997,2.28059941,604.25,604.22,1.23313156]
[1743241452199,2.28059941,604.24,604.22,1.23313156]
[1743241452400,2.28059941,604.23,604.17,0.33103265]
[1743241452600,0.92793846,604.22,604.18,0.2856136]
[1743241452901,0.92793846,604.21,604.18,0.2856136]
[1743241453096,1.0622669,604.22,604.17,0.33103265]
[1743241453295,0.92792324,604.21,604.17,0.33103265]
[1743241453500,0.92787745,604.2,604.17,0.33103265]
[1743241453799,0.4962787,604.5,604.17,0.33103265]
[1743241454000,6.42654906,604.49,604.17,0.33103265]
[1743241454199,5.93027036,604.48,604.17,0.33103265]
[1743241454401,5.93027036,604.47,604.17,0.33103265]
[1743241454702,8.69340287,604.46,604.17,0.33103265]
[1743241454902,8.05093941,604.45,604.17,0.33103265]
[1743241455095,1.6243849,604.43,604.17,0.33103265]
[1743241455298,0.9746787,604.41,604.17,0.33103265]
[1743241455501,6.42655451,604.4,604.17,0.33103265]
[1743241455696,6.42625853,604.39,604.17,0.33103265]
[1743241455900,6.42625853,604.38,604.17,0.33103265]
[1743241456101,6.42625853,604.37,604.17,0.33103265]
[1743241456303,6.42625853,604.36,604.17,0.33103265]
[1743241456503,6.42625853,604.35,604.17,0.33103265]
[1743241456702,5.92993398,604.34,604.17,0.33103265]
[1743241456902,5.92993398,604.33,604.17,0.33103265]
[1743241457100,5.92993398,604.32,604.17,0.33103265]
[1743241457297,5.93003751,604.31,604.17,0.33103265]
[1743241457498,3.7653359,604.3,604.17,0.33103265]
[1743241457807,3.76578838,604.29,604.18,0.28555915]
[1743241458003,2.28091787,604.28,604.18,0.28555915]
[1743241458200,2.28091787,604.27,604.18,0.28555915]
[1743241458403,2.28091787,604.26,604.18,0.28555915]
[1743241458608,2.28091787,604.25,604.18,0.28555915]
[1743241458801,2.28091787,604.24,604.18,0.28555915]
[1743241459006,0.92804407,604.23,604.18,0.28555915]
[1743241459203,1.06274327,604.25,604.18,0.28555915]
[1743241459505,0.92811798,604.24,604.19,0.28554746]
[1743241459707,0.92811798,604.23,604.18,0.28554746]
[1743241459908,1.06274327,604.24,604.19,0.28554746]
[1743241460109,0.92810269,604.23,604.18,0.28554746]
[1743241460410,1.06274327,604.24,604.19,0.28554746]
[1743241460709,1.62281375,604.49,604.2,0.28554746]
[1743241460908,6.427596,604.48,604.18,0.28554746]
[1743241461109,6.427596,604.47,604.19,0.28552948]
[1743241461310,6.427596,604.46,604.18,0.28552948]
[1743241461610,6.427596,604.45,604.19,0.28552948]
[1743241461812,6.42711574,604.44,604.2,0.28552948]
[1743241462012,6.42711574,604.43,604.21,0.28552948]
[1743241462206,4.26238624,604.42,604.22,0.28552948]
[1743241462407,3.76620101,604.41,604.23,0.28552948]
[1743241462611,2.28112711,604.4,604.18,0.28552948]
[1743241462811,2.28112711,604.39,604.19,0.28552948]
[1743241463013,2.28112711,604.38,604.18,0.28552948]
[1743241463213,2.28112711,604.37,604.19,0.28552948]
[1743241463416,2.28112711,604.36,604.18,0.28552948]
[1743241463614,0.92817118,604.35,604.18,0.28552948]
[1743241463816,1.06276282,604.37,604.18,0.28552948]
[1743241464017,1.06276282,604.37,604.3,1.23730318]
[1743241464210,1.62281375,604.63,604.31,0.28552948]
[1743241464407,6.42550059,604.62,604.31,0.28552948]
[1743241464610,6.42550059,604.61,604.31,0.28552948]
[1743241464913,6.42550059,604.6,604.31,0.28552948]
[1743241465114,6.42550059,604.59,604.31,0.28552948]
[1743241465314,6.42550059,604.58,604.31,0.28552948]
[1743241465518,2.76253635,604.61,604.31,0.28552948]
[1743241465519,6.42550059,604.57,604.31,0.28552948]
[1743241465715,6.42550059,604.56,604.31,0.28552948]
[1743241465911,6.42550059,604.55,604.31,0.28552948]
[1743241466216,8.69187097,604.54,604.31,0.28552948]
[1743241466417,2.28051331,604.53,604.21,0.28552948]
[1743241466615,2.76253635,604.54,604.2,1.23730318]
[1743241466616,2.28051331,604.52,604.32,0.28552948]
[1743241466816,2.28051331,604.51,604.33,0.28552948]
[1743241467017,2.28051331,604.5,604.21,0.28552948]
[1743241467216,1.99035393,604.49,604.22,0.61653474]
[1743241467416,0.92783995,604.48,604.23,0.28552948]
[1743241467714,1.06251398,604.47,604.23,0.28552948]
[1743241467911,1.06251398,604.47,604.24,0.3309943]
[1743241468112,1.62281375,604.83,604.25,0.28552948]
[1743241468314,0.97428159,604.8,604.26,0.33098335]
[1743241468518,8.047232,604.82,604.26,0.33098335]
[1743241468519,6.42342934,604.79,604.27,0.28552948]
[1743241468717,6.42342934,604.78,604.28,0.33097239]
[1743241468917,6.42342934,604.77,604.29,0.28552948]
[1743241469117,6.42342934,604.76,604.29,0.28552948]
[1743241469317,6.41935817,604.75,604.3,0.33096144]
[1743241469517,6.41935817,604.74,604.31,0.28552948]
[1743241469718,6.41935817,604.73,604.32,0.33095048]
[1743241469918,9.18021703,604.72,604.33,0.28552948]
[1743241470115,6.41935817,604.71,604.34,0.33093953]
[1743241470418,6.41935817,604.7,604.35,0.28552948]
[1743241470622,6.41935817,604.69,604.36,0.33092858]
[1743241470814,5.92336736,604.68,604.37,0.28552948]
[1743241471018,2.27821821,604.67,604.38,0.33091763]
[1743241471213,4.43874669,604.66,604.38,0.33091763]
[1743241471413,5.92071015,604.65,604.41,1.23730318]
[1743241471615,5.92071015,604.64,604.41,1.23730318]
[1743241471812,5.92071015,604.63,604.41,1.23730318]
[1743241472016,5.92071015,604.62,604.41,1.23730318]
[1743241472218,5.92071015,604.61,604.41,1.23730318]
[1743241472419,5.92071015,604.6,604.41,1.23730318]
[1743241472620,5.92071015,604.59,604.41,1.23730318]
[1743241472816,5.92071015,604.58,604.41,1.23730318]
[1743241473122,5.91665957,604.57,604.41,1.23730318]
[1743241473321,3.75702092,604.56,604.41,1.23730318]
[1743241473524,2.27564336,604.55,604.38,0.33091763]
[1743241473720,2.27564336,604.54,604.38,0.33091763]
[1743241473921,2.27564336,604.53,604.38,0.33091763]
[1743241474121,2.27564336,604.52,604.38,0.33091763]
[1743241474316,2.27564336,604.51,604.38,0.33091763]
[1743241474622,2.27564336,604.5,604.38,0.33091763]
[1743241474822,2.27564336,604.49,604.38,0.33091763]
[1743241475117,2.27564336,604.48,604.38,0.33091763]
[1743241475326,2.27564336,604.47,604.38,0.33091763]
[1743241475519,2.27564336,604.46,604.38,0.33091763]
[1743241475718,2.27564336,604.45,604.38,0.33091763]
[1743241475920,2.27564336,604.44,604.38,0.33091763]
[1743241476119,1.06186879,604.45,604.38,0.33091763]
[1743241476120,2.27564336,604.43,604.38,0.33091763]
[1743241476421,0.92586098,604.42,604.38,0.33091763]
[1743241476621,1.06186879,604.43,604.38,0.33091763]
[1743241476819,0.92578508,604.42,604.38,0.33091763]
[1743241477023,1.06186879,604.43,604.38,0.33091763]
[1743241477318,3.33726675,604.42,604.38,0.33091763]
[1743241477518,0.92577796,604.41,604.38,0.33091763]
[1743241477720,1.06186879,604.42,604.38,0.33091763]
[1743241477918,0.92571249,604.41,604.38,0.33091763]
[1743241478123,1.06186879,604.41,604.38,0.33091763]
[1743241478819,2.5953919,604.73,604.39,0.28549823]
[1743241479015,6.41165536,604.72,604.38,0.33091763]
[1743241479220,9.16794911,604.71,604.38,0.33091763]
[1743241479423,6.41165536,604.7,604.38,0.33091763]
[1743241479621,6.41165536,604.69,604.38,0.33091763]
[1743241479924,6.41165536,604.68,604.38,0.33091763]
[1743241480124,9.16794911,604.67,604.38,0.33091763]
[1743241480323,6.41165536,604.66,604.38,0.33091763]
[1743241480522,6.41165536,604.65,604.38,0.33091763]
[1743241480720,6.41165536,604.64,604.38,0.33091763]
[1743241480925,6.41165536,604.63,604.38,0.33091763]
[1743241481120,6.41165536,604.62,604.38,0.33091763]
[1743241481323,6.41165536,604.61,604.38,0.33091763]
[1743241481524,6.41165536,604.6,604.38,0.33091763]
[1743241481820,5.91550259,604.59,604.38,0.33091763]
[1743241482020,5.91550259,604.58,604.38,0.33091763]
[1743241482225,5.91550259,604.57,604.38,0.33091763]
[1743241482426,5.91550259,604.56,604.38,0.33091763]
[1743241482624,5.91550259,604.55,604.38,0.33091763]
[1743241482824,5.91550259,604.54,604.38,0.33091763]
[1743241483022,5.91659271,604.53,604.38,0.33091763]
[1743241483223,5.91659271,604.52,604.38,0.33091763]
[1743241483429,5.48668128,604.51,604.38,0.33091763]
[1743241483623,3.50873617,604.5,604.38,0.33091763]
[1743241483931,3.50873617,604.5,603.81,1.23350027]
[1743241483932,5.91659271,604.49,603.98,1.23730318]
[1743241484124,4.99049404,604.48,603.99,0.61673799]
[1743241484326,4.99049404,604.47,604.0,0.28560668]
[1743241484529,5.62572678,604.46,604.0,0.28560668]
[1743241484725,4.93102208,604.45,603.99,0.33113131]
[1743241484924,3.5080728,604.44,603.99,0.33113131]
[1743241485125,6.41211658,604.43,603.99,0.33113131]
[1743241485330,6.41211658,604.42,603.99,0.33113131]
[1743241485531,6.41211658,604.41,603.99,0.33113131]
[1743241485726,6.41211658,604.4,603.99,0.33113131]
[1743241485924,6.41211658,604.39,603.99,0.33113131]
[1743241486124,3.5080728,604.38,603.99,0.33113131]
[1743241486328,3.5080728,604.37,603.99,0.33113131]
[1743241486533,1.62071,604.27,604.0,0.28572925]
[1743241486832,0.97150374,604.24,603.87,1.23730318]
[1743241487032,5.91204136,604.23,603.88,0.28573766]
[1743241487333,6.40856097,604.22,603.88,0.28573766]
[1743241487534,4.43267609,604.21,603.88,0.28573766]
[1743241487734,4.43267609,604.2,603.87,1.23730318]
[1743241487930,5.1287828,604.19,603.87,1.23730318]
[1743241488130,1.62071,604.08,603.87,1.23730318]
[1743241488332,3.5080728,604.07,603.87,1.23730318]
[1743241488529,3.5080728,604.06,603.66,1.23350027]
[1743241488729,4.98743807,604.05,603.64,1.23730318]
[1743241488932,3.5080728,604.04,603.64,1.23730318]
[1743241489130,1.62071,603.91,603.64,1.23730318]
[1743241489331,3.5080728,603.9,603.64,1.23730318]
[1743241489530,1.34925877,603.89,603.64,1.23730318]
[1743241489733,4.47957654,603.88,603.64,1.23730318]
[1743241489933,5.91204136,603.87,603.64,1.23730318]
[1743241490136,1.34925877,603.86,603.64,1.23730318]
[1743241490333,1.34925877,603.85,603.64,1.23730318]
[1743241490530,1.34925877,603.84,603.64,1.23730318]
[1743241490735,1.34925877,603.83,603.34,1.23350027]
[1743241490942,1.34925877,603.82,603.05,1.23730318]
[1743241491136,2.27386206,603.81,603.06,0.28591288]
[1743241491431,1.34925877,603.8,603.22,0.28826799]
[1743241491637,1.34925877,603.8,603.07,0.33163646]
[1743241491638,2.27386206,603.79,603.23,0.28591288]
[1743241491836,4.41765166,603.79,603.08,0.28594163]
[1743241492040,3.98984691,603.78,603.07,0.33163646]
[1743241492236,3.98984691,603.77,603.07,0.33163646]
[1743241492433,4.9144502,603.76,603.08,0.28603582]
[1743241492738,4.9144502,603.75,603.08,0.28603582]
[1743241492935,4.41765166,603.74,603.08,0.28603582]
[1743241493134,3.49304837,603.73,603.07,0.62000119]
[1743241493339,3.49304837,603.72,603.07,0.62000119]
[1743241493541,4.41765166,603.71,603.07,0.62000119]
[1743241493839,5.88831597,603.7,603.07,0.62000119]
[1743241494040,5.88831597,603.69,603.07,0.62000119]
[1743241494339,5.88204344,603.68,603.07,0.62000119]
[1743241494538,3.74452637,603.67,603.08,0.28600237]
[1743241494740,2.26074402,603.66,603.08,0.28600237]
[1743241494936,3.4186569,603.67,603.08,0.28600237]
[1743241495140,0.91665797,603.66,603.08,0.28600237]
[1743241495340,3.4186569,603.67,603.08,0.28600237]
[1743241495539,1.06011298,603.65,603.08,0.28600237]
[1743241496136,0.97150374,604.06,603.08,0.28600237]
[1743241496334,5.85673747,604.05,603.09,0.28600237]
[1743241496538,5.85673747,604.04,603.1,0.28600237]
[1743241496840,2.25259133,604.03,603.11,0.28600237]
[1743241497035,3.74538111,604.03,603.12,0.28600237]
[1743241497240,3.74538111,604.03,603.13,0.28600237]
[1743241497440,3.74538111,604.03,603.14,0.28600237]
[1743241497640,3.74538111,604.03,603.09,0.28600237]
[1743241497842,0.9165205,604.02,603.1,0.28600237]
[1743241498042,1.08802331,604.02,603.11,0.28600237]
[1743241498238,1.08802331,604.02,603.08,0.28811525]
[1743241498442,1.08802331,604.02,603.12,0.28559591]
[1743241498637,1.08802331,604.01,603.09,0.28559591]
[1743241498841,1.08802331,604.01,603.08,0.28811525]
[1743241499041,1.62281375,604.29,603.09,0.28556809]
[1743241499239,6.2933826,604.28,603.1,0.28556809]
[1743241499545,6.29336582,604.27,603.11,0.28556809]
[1743241499748,6.29336728,604.26,603.12,0.28556809]
[1743241499942,6.29336728,604.25,603.13,0.28556809]
[1743241500136,6.29336728,604.24,603.14,0.28556809]
[1743241500345,6.29336728,604.23,603.09,0.28556809]
[1743241500539,6.29336728,604.22,603.15,0.28556809]
[1743241500742,1.62071,604.2,603.16,0.28556809]
[1743241500938,0.97150374,604.06,603.17,0.28556809]
[1743241501140,0.97150374,604.03,603.18,0.28556809]
[1743241501340,5.79693229,604.02,603.19,0.28556809]
[1743241501547,5.79693229,604.01,603.2,0.28556809]
[1743241501746,1.62281375,603.96,603.21,0.28556809]
[1743241501945,5.81025945,603.95,603.22,0.28556809]
[1743241502241,4.34232072,603.94,603.23,0.28556809]
[1743241502449,5.96513447,603.93,603.09,0.28556809]
[1743241502650,5.79693229,603.92,603.1,0.28556809]
[1743241502944,1.62281375,603.93,603.08,0.28811525]
[1743241502945,5.79693229,603.91,603.11,0.28556809]
[1743241503148,6.29362607,603.9,603.09,0.28556809]
[1743241503349,4.88780006,603.89,603.1,0.28556809]
[1743241503648,0.90913223,603.9,603.11,0.28556809]
[1743241503649,5.38445851,603.88,603.11,0.28556809]
[1743241503950,2.77304585,603.87,603.12,0.28556809]
[1743241504145,3.26968931,603.86,603.13,0.28556809]
[1743241504346,0.90913223,603.87,603.14,0.28556809]
[1743241504550,2.77028335,603.86,603.15,0.28556809]
[1743241504740,0.90913223,603.87,603.16,0.28556809]
[1743241504741,6.75799145,603.85,603.16,0.28556809]
[1743241504946,2.77028335,603.84,603.08,0.28811525]
[1743241505145,5.78779646,603.83,603.09,0.28589537]
[1743241505345,3.67915902,603.82,603.1,0.28589537]
[1743241505544,3.67852825,603.81,603.09,0.28589537]
[1743241505750,3.67852825,603.8,603.1,0.28589537]
[1743241505943,6.28309621,603.79,603.09,0.28589537]
[1743241506141,3.67852825,603.78,603.1,0.28589537]
[1743241506345,0.90913223,603.77,603.11,0.28589537]
[1743241506552,0.90913223,603.77,603.12,0.28589537]
[1743241506749,6.25925443,603.76,603.12,0.28589537]
[1743241506948,3.42403376,603.75,603.13,0.28589537]
[1743241507151,3.42403376,603.74,603.14,0.28589537]
[1743241507450,3.49106911,603.76,603.15,0.28589537]
[1743241507642,3.49106911,603.76,603.09,0.28589537]
[1743241507843,1.08813954,603.73,603.09,0.28589537]
[1743241508147,3.72964436,603.72,603.09,0.28589537]
[1743241508451,0.90612764,603.71,603.09,0.28589537]
[1743241508651,0.90612764,603.71,603.08,0.28811525]
[1743241508652,1.31516574,603.7,603.08,0.28811525]
[1743241508850,3.67015852,603.69,603.09,0.28600443]
[1743241509049,5.36497652,603.68,603.09,0.28600443]
[1743241509250,1.81217598,603.67,603.09,0.28600443]
[1743241509447,3.91431362,603.66,603.09,0.28600443]
[1743241509647,3.91431362,603.65,603.09,0.28600443]
[1743241509847,1.31516574,603.64,603.1,0.28600443]
[1743241510050,1.31516574,603.63,603.08,0.28600443]
[1743241510250,3.41535442,603.62,603.07,0.33163646]
[1743241510448,4.8184923,603.61,603.09,0.28607218]
[1743241510646,3.67015852,603.6,603.07,0.33163646]
[1743241510851,2.76141989,603.59,603.07,0.33163646]
[1743241511149,2.21633929,603.58,603.07,0.33163646]
[1743241511345,2.21633929,603.57,603.07,0.33163646]
[1743241511550,0.90378454,603.57,603.07,0.33163646]
[1743241512049,0.90378454,603.56,603.07,0.33163646]
[1743241512446,2.82351672,603.55,603.08,0.28599274]
[1743241512644,3.72730126,603.55,603.08,0.28599274]
[1743241512843,2.82351672,603.55,603.08,0.28599274]
[1743241513151,1.08813954,603.54,603.08,0.28599274]
[1743241513551,1.08813954,603.54,603.07,0.33163646]
[1743241513752,1.08813954,603.54,603.08,0.28592634]
[1743241513953,0.49685729,603.84,603.08,0.28592634]
[1743241514152,3.65906547,603.83,603.08,0.28592634]
[1743241514355,2.75611302,603.82,603.08,0.28592634]
[1743241514554,1.44472393,603.81,603.08,0.28592634]
[1743241514753,0.90295245,603.82,603.08,0.28592634]
[1743241515253,2.84444851,603.81,603.08,0.28592634]
[1743241515553,6.25400552,603.8,603.08,0.28592634]
[1743241515749,6.25400552,603.79,603.08,0.28592634]
[1743241515951,6.25400552,603.78,603.08,0.28592634]
[1743241516151,7.87681927,603.77,603.08,0.28592634]
[1743241516351,6.25415313,603.76,603.08,0.28592634]
[1743241516655,6.25415313,603.75,603.09,0.28592634]
[1743241516857,3.65900343,603.74,603.1,0.28592634]
[1743241517050,4.8091151,603.73,603.11,0.28592634]
[1743241517356,1.4446829,603.74,603.12,0.28592634]
[1743241517357,1.62281375,603.66,603.12,0.28592634]
[1743241517553,3.65900343,603.65,603.08,0.28592634]
[1743241517749,3.65900343,603.64,603.08,0.28592634]
[1743241517953,3.65900343,603.63,603.08,0.28592634]
[1743241518148,3.65900343,603.62,603.08,0.28592634]
[1743241518354,6.25260639,603.61,603.08,0.28592634]
[1743241518553,6.25100947,603.6,603.08,0.28592634]
[1743241518754,3.65734032,603.59,603.08,0.28592634]
[1743241518950,3.65734032,603.58,603.08,0.28592634]
[1743241519155,2.21366509,603.57,603.08,0.28592634]
[1743241519356,0.90229701,603.56,603.08,0.28592634]
[1743241519557,0.90229701,603.55,603.08,0.28592634]